Cogmind - Beta 17 @@@ ROGUE MODE // 2026.07.25 @ 14:49:13 Player: Akl Result: Destroyed by G-47 Trooper with Particle Gun Performance ------------- Evolutions (2) 1000 Regions Visited (5) 1000 Robots Destroyed (24) 120 Value Destroyed (922) 922 Prototype IDs (5) 100 Alien Tech Used (0) 0 Bonus (225) 225 TOTAL SCORE: 3367 Bonus ------- Follower Combat Kills 225 Cogmind --------- Core Integrity 0/550 Matter 270/300 Energy 285/290 System Corruption 0% Temperature Warning (374) Movement Core (250) Ox4 Location -8/Materials Parts ------- > --- POWER (1) -------- Improved Deuterium Engine > --- PROPULSION (2) --- Carbon-fiber Leg > --- UTILITY (4) ------ Targeting Computer Advanced Targeting Computer Core Analyzer Hacking Suite > --- WEAPON (4) ------- Particle Gun > --- INVENTORY (5) ---- Light Nuclear Core Improved Cooling System Targeting Computer Armor Integrity Analyzer Armor Integrity Analyzer Peak State ------------ > --- POWER ------------ Improved Deuterium Engine > --- PROPULSION ------- Carbon-fiber Leg Carbon-fiber Leg > --- UTILITY ---------- Targeting Computer Advanced Targeting Computer Core Analyzer Hacking Suite > --- WEAPON ----------- Improved EM Shotgun Particle Gun Particle Gun Pulse Rifle > --- INVENTORY -------- Light Nuclear Core Improved Cooling System Targeting Computer Armor Integrity Analyzer Armor Integrity Analyzer [Rating: 32] Favorites ----------- Power Ion Engine Engine Ion Engine Propulsion Aluminum Leg Treads Light Treads Leg Aluminum Leg Utility Makeshift Salvage Targeting Computer Processor Makeshift Salvage Targeting Computer Hackware Hacking Suite Weapon Small Laser Energy Gun Small Laser Ballistic Gun Assault Rifle Special Melee Weapon Datajack Build | -11 -10 -10 -10 -9 -8 ------- Run | Yrd Mat Min Exi Min Mat Slots Evolved 4 | . . . . . 4 Power . | . . . . . . Propulsion . | . . . . . . Utility 2 | . . . . . 2 Weapon 2 | . . . . . 2 Parts Attached 36 | 4 3 4 1 4 20 Power 4 | . . 1 . . 3 Engine 4 | . . 1 . . 3 Core . | . . . . . . Reactor . | . . . . . . Propulsion 14 | 2 2 2 . 1 7 Treads 1 | . . 1 . . . Leg 13 | 2 2 1 . 1 7 Wheel . | . . . . . . Hover . | . . . . . . Flight . | . . . . . . Utility 5 | . . . 1 1 3 Device . | . . . . . . Storage . | . . . . . . Processor 4 | . . . 1 1 2 Hackware 1 | . . . . . 1 Protection . | . . . . . . Artifact . | . . . . . . Weapon 13 | 2 1 1 . 2 7 Energy Gun 10 | . 1 1 . 2 6 Energy Cannon . | . . . . . . Ballistic Gun 2 | 2 . . . . . Ballistic Cannon . | . . . . . . Launcher . | . . . . . . Special Weapon . | . . . . . . Impact Weapon . | . . . . . . Slashing Weapon . | . . . . . . Piercing Weapon . | . . . . . . Special Melee Weapon 1 | . . . . . 1 Unidentified Prototypes 1 | . . . . . 1 Parts Lost 12 | . 2 1 . 1 8 Power 1 | . . . . . 1 Propulsion 2 | . . 1 . . 1 Utility . | . . . . . . Weapon 9 | . 2 . . 1 6 Highest Loss Streak 4 | . 2 1 . 1 4 To Critical Strikes . | . . . . . . Average Backups 4 | 2 4 4 4 5 4 Power 1 | . 2 2 2 2 1 Propulsion 1 | 2 2 1 1 2 1 Utility . | . . . . . 1 Weapon . | . . 1 1 1 . Tool/Special . | . . . . . . Unused Backups 9 | . . . . . 9 Power 2 | . . . . . 2 Propulsion 2 | . . . . . 2 Utility 4 | . . . . . 4 Weapon 1 | . . . . . 1 Tool/Special . | . . . . . . Average Slot Usage (%) 80 | . 52 53 80 84 93 Engine 10 | . . 6 14 14 8 Leg 24 | . 28 20 28 28 17 Processor 14 | . . . 9 14 26 Hackware 3 | . . . . . 8 Energy Gun 19 | . 7 6 14 25 30 Ballistic Gun 8 | . 15 14 14 . . Peak Build Rating 32 | 4 4 5 9 10 32 Average Rating 12 | 2 3 3 7 9 24 On Entrance 5 | . 4 3 5 9 10 Avg Prop Armor Cover (%) 20 | 21 19 23 . . 11 Naked Turns . | . . . . . . Heaviest Build 22 | 3 3 8 8 8 22 Greatest Support 33 | 3 10 20 20 20 33 Greatest Overweight (x) 2 | . . 2 . . 1 Average Overweight (x) . | . . . . . . Largest Inventory Capacity 5 | 5 5 5 5 5 5 Average Capacity 5 | 5 5 5 5 5 5 Most Carried 5 | 4 5 5 5 5 5 Average Carried 4 | 2 4 4 4 5 4 Final Capacity 5 | 5 5 5 5 5 5 Final Carried 5 | 4 5 5 5 5 5 Class Distribution -------------------- 53% | Scavenger-Mutant 30% | Scavenger-Gunner 15% | Mutant Dominant Class ---------------- Mutant | -10/Materials Mutant | -10/Mines Scavenger-Mutant | -10/Exiles Scavenger-Mutant | -9/Mines Scavenger-Gunner | -8/Materials Resources | -11 -10 -10 -10 -9 -8 ----------- Run | Yrd Mat Min Exi Min Mat Matter Collected 667 | 234 87 88 . 35 223 Remotely . | . . . . . . Salvage Created 987 | . 224 91 . . 672 Parts 44 | . 7 3 . . 34 Haulers Intercepted . | . . . . . . Recyclers Shooed 1 | . . . . . 1 Parts Field Recycled . | . . . . . . Retrieved Matter . | . . . . . . Parts Self-Destructed . | . . . . . . Prevented . | . . . . . . Parts Restored . | . . . . . . Kills | -11 -10 -10 -10 -9 -8 ------- Run | Yrd Mat Min Exi Min Mat Combat Hostiles Destroyed 20 | . 5 2 . . 13 Guns 19 | . 4 2 . . 13 Classes Destroyed 6 | . 2 . . . 4 Worker 1 | . 1 . . . . Watcher 3 | . . . . . 3 Swarmer 3 | . . . . . 3 Grunt 11 | . 5 2 . . 4 Sentry 2 | . . . . . 2 Specialist 4 | . . . . . 4 Best Kill Streak 3 | . 3 2 . . 3 Combat Bots Only 3 | . 2 2 . . 3 Max Kills in Single Turn 1 | . 1 1 . . 1 Gunslinging . | . . . . . . Exploded . | . . . . . . Melee . | . . . . . . Uniques/NPCs Destroyed . | . . . . . . Combat | -11 -10 -10 -10 -9 -8 -------- Run | Yrd Mat Min Exi Min Mat Hostile Shots Fired 182 | . 54 21 . 1 106 Missed 45 | . 18 5 . 1 21 Hits 137 | . 36 16 . . 85 Projectile 137 | . 36 16 . . 85 Critical Strikes 4 | . . . . . 4 Damage Taken 2246 | . 440 212 . 38 1556 Core 683 | . 100 28 . . 555 Absorbed by Shields . | . . . . . . Core Remaining (%) 74 | 100 . . . 48 . Volleys Fired 85 | . 29 16 . . 40 Largest 4 | . 2 1 . . 4 Hottest 238 | . 70 20 . . 238 Shots Fired 188 | . 49 16 . . 123 Gun 188 | . 49 16 . . 123 Cannon . | . . . . . . Launcher . | . . . . . . Special . | . . . . . . Kinetic 45 | . 29 16 . . . Thermal 138 | . 20 . . . 118 Explosive . | . . . . . . Electromagnetic 5 | . . . . . 5 Robot Hit Streak 20 | . 12 3 . . 20 Robot Miss Streak 4 | . 1 2 . . 4 Penetration Max . | . . . . . . Secondary Targets 5 | . 1 . . . 4 Max Gunslinging Chain 1 | . 1 . . . 1 Shots Hit Robots 148 | . 43 9 . . 96 Core Hits 57 | . 14 5 . . 38 Critical Kills . | . . . . . . Critical Parts Destroyed . | . . . . . . Critical Strikes 6 | . 3 . . . 3 Burn 6 | . 3 . . . 3 Melee Attacks 4 | . . . . . 4 Impact . | . . . . . . Slashing . | . . . . . . Piercing . | . . . . . . Sneak Attacks 2 | . . . . . 2 Combat Hostiles . | . . . . . . Follow-up Attacks . | . . . . . . Damage Inflicted 1889 | . 485 109 . . 1295 Guns 1876 | . 485 109 . . 1282 Cannons . | . . . . . . Explosions . | . . . . . . Melee . | . . . . . . Ramming 13 | . . . . . 13 Kinetic 367 | . 258 109 . . . Thermal 1452 | . 227 . . . 1225 Explosive . | . . . . . . Electromagnetic 57 | . . . . . 57 Impact . | . . . . . . Slashing . | . . . . . . Piercing . | . . . . . . Highest Corruption . | . . . . . . Average Corruption . | . . . . . . Corruption Purged . | . . . . . . Corruption Blocked . | . . . . . . Overload Shots . | . . . . . . Overflow Damage . | . . . . . . Projectiles . | . . . . . . Explosions . | . . . . . . Melee . | . . . . . . Knockbacks . | . . . . . . Impact . | . . . . . . Kinetic . | . . . . . . Secondary . | . . . . . . Self-Inflicted Damage 1 | . . . . . 1 Shots . | . . . . . . Rammed 1 | . . . . . 1 Targets Rammed 5 | . . . . . 5 Kicked 4 | . . . . . 4 Crushed . | . . . . . . Highest Temperature 643 | . 115 . . . 643 Average Temperature 174 | . 53 . . . 204 Received Heat Transfer 918 | . 231 120 . 9 558 Effects 19 | . . . . . 19 Shutdowns 2 | . . . . . 2 Energy Bleed 5 | . . . . . 5 Interference 6 | . . . . . 6 Matter Decay 1 | . . . . . 1 Short Circuit 1 | . . . . . 1 Damage (minor) 1 | . . . . . 1 Damage (major) 1 | . . . . . 1 Damage (core) 2 | . . . . . 2 Siege Activations . | . . . . . . Martial Activations . | . . . . . . Shielding Activations . | . . . . . . Robots Disrupted . | . . . . . . Combat Hostiles . | . . . . . . Robots Corrupted . | . . . . . . Combat Hostiles . | . . . . . . Parts Fried . | . . . . . . Impact Corruptions . | . . . . . . Robots Melted 1 | . 1 . . . . Combat Hostiles 1 | . 1 . . . . Parts Melted 9 | . 1 . . . 8 Heat Transferred 3985 | . 888 . . . 3097 Parts Sabotaged . | . . . . . . Parts Stolen . | . . . . . . Parts Stripped . | . . . . . . Power Chain Reactions . | . . . . . . Alert | -11 -10 -10 -10 -9 -8 ------- Run | Yrd Mat Min Exi Min Mat Maximum Alert Level 1 | . . . . . 1 Low Security (%) 62 | 100 100 100 . 100 36 Level 1 37 | . . . . . 63 Level 2 . | . . . . . . Level 3 . | . . . . . . Level 4 . | . . . . . . Level 5 . | . . . . . . High Security . | . . . . . . Max Security . | . . . . . . Peak Influence 270 | . 65 40 . 99 270 Initial 7 | . . 5 . . 7 Average 116 | . 29 17 . 59 175 Influence Increases 882 | . 130 50 . 99 603 Destroy 0b10 Robot/C 540 | . 100 40 . 60 340 Destroy 0b10 Robot/NC 25 | . 5 . . . 20 Destroy Leader 126 | . 20 10 . 10 86 Allied During Kill 30 | . . . . 14 16 Successful Hack 23 | . 5 . . . 18 Disable Machine 15 | . . . . 15 . Destroy Structure 3 | . . . . . 3 Lose Combat Pursuer 120 | . . . . . 120 Influence Decreases 683 | . 115 55 10 80 423 Entered New Map 32 | . . 10 10 . 12 Time Decay 486 | . 95 40 . 80 271 Lost Part 105 | . 20 5 . . 80 Lost Ally 60 | . . . . . 60 Squads Dispatched 6 | . . . . . 6 Investigation 3 | . . . . . 3 Extermination . | . . . . . . Reinforcement 3 | . . . . . 3 Assault . | . . . . . . Garrison . | . . . . . . Intercept . | . . . . . . Searches Triggered . | . . . . . . Construction Impeded . | . . . . . . Haulers Reinforced . | . . . . . . Active Scanning Responses . | . . . . . . Cargo Convoy Interrupts . | . . . . . . Stealth | -11 -10 -10 -10 -9 -8 --------- Run | Yrd Mat Min Exi Min Mat Distress Signals 2 | . . . . . 2 Communications Jammed . | . . . . . . Distress Signals . | . . . . . . Times Spotted 42 | . 10 2 . 3 27 Peak Tracking Total 10 | . 5 2 . 3 10 Tactical Retreats 2 | . . . . . 2 Traps | -11 -10 -10 -10 -9 -8 ------- Run | Yrd Mat Min Exi Min Mat Traps Triggered . | . . . . . . Indirectly . | . . . . . . Trap Hack Attempts . | . . . . . . Triggered . | . . . . . . Disarmed . | . . . . . . Reprogrammed . | . . . . . . Reused . | . . . . . . Traps Extracted . | . . . . . . Installed . | . . . . . . Triggered . | . . . . . . Machines | -11 -10 -10 -10 -9 -8 ---------- Run | Yrd Mat Min Exi Min Mat Machines Disabled 1 | . . . . 1 . Max in Single Turn . | . . . . . . Machines Repaired . | . . . . . . Machines Dismantled . | . . . . . . Machines Sabotaged . | . . . . . . Overloaded Fab Kills . | . . . . . . Hacking | -11 -10 -10 -10 -9 -8 --------- Run | Yrd Mat Min Exi Min Mat Machines Accessed 10 | . 1 . 4 . 5 Terminals 5 | . 1 . . . 4 Fabricators . | . . . . . . Repair Stations . | . . . . . . Recycling Units . | . . . . . . Scanalyzers 1 | . . . . . 1 Garrison Access . | . . . . . . Total Hacks 68 | . 2 . 49 . 17 Successful 58 | . 1 . 49 . 8 Failed 10 | . 1 . . . 9 Catastrophic 1 | . 1 . . . . Database Lockouts . | . . . . . . Manual 18 | . 2 . . . 16 Terminals 16 | . 2 . . . 14 Fabricators . | . . . . . . Repair Stations . | . . . . . . Recycling Units . | . . . . . . Scanalyzers 3 | . . . . . 3 Garrison Access . | . . . . . . Terminal Hacks 53 | . . . 49 . 4 Record 49 | . . . 49 . . Prototype ID Bank 2 | . . . . . 2 Emergency Access Points 1 | . . . . . 1 Zone Layout 1 | . . . . . 1 Fabricator Hacks . | . . . . . . Repair Station Hacks . | . . . . . . Recycling Unit Hacks . | . . . . . . Scanalyzer . | . . . . . . Garrison Access Hacks . | . . . . . . Unauthorized Hacks 5 | . 1 . . . 4 Terminals 4 | . 1 . . . 3 Botnet 4 | . 1 . . . 3 Fabricators . | . . . . . . Repair Stations . | . . . . . . Recycling Units . | . . . . . . Scanalyzers 1 | . . . . . 1 Researchers 1 | . . . . . 1 Garrison Access . | . . . . . . Data Cores Recovered . | . . . . . . Used . | . . . . . . Hacking Detections 5 | . 1 . . . 4 Full Trace Events 3 | . . . . . 3 Feedback Events . | . . . . . . Feedback Blocked . | . . . . . . Robot Schematics Acquired . | . . . . . . Robots Built . | . . . . . . Authchips . | . . . . . . Time . | . . . . . . Total Robot Build Rating . | . . . . . . Part Schematics Acquired . | . . . . . . Parts Built . | . . . . . . Authchips . | . . . . . . Time . | . . . . . . Total Part Build Rating . | . . . . . . Part Studies Acquired . | . . . . . . Parts Repaired . | . . . . . . Time . | . . . . . . Parts Recycled . | . . . . . . Recycled Matter . | . . . . . . Retrieved Matter . | . . . . . . Retrieved Components . | . . . . . . Parts Scanalyzed . | . . . . . . Part Schematics Acquired . | . . . . . . Parts Damaged . | . . . . . . Bothacking | -11 -10 -10 -10 -9 -8 ------------ Run | Yrd Mat Min Exi Min Mat Used RIF Installer . | . . . . . . Robots Hacked 2 | . . . . . 2 Non-combat 2 | . . . . . 2 Combat . | . . . . . . Robot Hacks Applied 2 | . . . . . 2 parse_system 1 | . . . . . 1 no_distress 1 | . . . . . 1 Relay Couplers Released . | . . . . . . Fabnet Peak Effective % . | . . . . . . Robots Rewired 4 | . . . 4 . . Allies Hacked . | . . . . . . Hacks Repelled . | . . . . . . Allies | -11 -10 -10 -10 -9 -8 -------- Run | Yrd Mat Min Exi Min Mat Total Allies 4 | . . . 4 . . Largest Group 4 | . . . 4 4 4 Highest-Rated Group 45 | . . . 45 45 45 Highest-Rated Ally 21 | . . . 21 21 21 Total Orders . | . . . . . . Ally Attacks 40 | . . . . 12 28 Total Damage 686 | . . . . 170 516 Kills 8 | . . . . 3 5 Allies Corrupted . | . . . . . . Allies Melted . | . . . . . . Intel | -11 -10 -10 -10 -9 -8 ------- Run | Yrd Mat Min Exi Min Mat Active Infowar (turns) . | . . . . . . Robot Analysis Total . | . . . . . . Derelict Logs Recovered . | . . . . . . Drone Launches . | . . . . . . Drone Recoveries . | . . . . . . Exploration | -11 -10 -10 -10 -9 -8 ------------- Run | Yrd Mat Min Exi Min Mat Turns Passed 2180 | 37 232 101 897 166 747 Spaces Moved 1449 | 49 142 76 638 120 424 Core 193 | 49 97 47 . . . Treads . | . . . . . . Legs 1256 | . 45 29 638 120 424 Wheels . | . . . . . . Hover . | . . . . . . Flight . | . . . . . . Fastest Speed 50 | 50 50 50 120 120 120 Average Speed 111 | 50 72 83 120 120 120 Slowest Speed 190 | 50 120 150 120 120 190 Overloaded Moves . | . . . . . . Propulsion Burnouts . | . . . . . . Robots Hopped . | . . . . . . Potential Cave-ins . | . . . . . . Cave-ins Triggered . | . . . . . . Exploration Rate (%) 34 | 4 28 17 92 34 31 Regions Visited 5 Branch Regions 3 Pre-discovered Areas 1 | . . . 1 . . Known Exits Taken . | . . . . . . Unknown Exits Taken 5 | 1 1 1 1 1 . Scrap Searched 1 | . . . . 1 . Spaces Dug . | . . . . . . Terrain Destroyed . | . . . . . . Melee . | . . . . . . Projectile . | . . . . . . AOE . | . . . . . . Terrain Rammed . | . . . . . . Walls Destroyed . | . . . . . . Machines Disabled . | . . . . . . Actions | -11 -10 -10 -10 -9 -8 --------- Run | Yrd Mat Min Exi Min Mat Total 1862 | 60 226 96 769 141 570 Wait 125 | . 48 . 9 16 52 Move 1444 | 48 141 75 637 119 424 Hop . | . . . . . . Pick Up 17 | 8 2 1 1 . 5 Fast Attach 21 | . . 2 1 4 14 Attach 8 | 4 1 1 . . 2 Detach 1 | . . . . . 1 Swap 10 | . 3 1 . . 6 Drop 22 | . 2 . 1 2 17 Fire 85 | . 29 16 . . 40 Melee 4 | . . . . . 4 Ram 1 | . . . . . 1 Kick 4 | . . . . . 4 Crush . | . . . . . . Escape Stasis . | . . . . . . Rewire 120 | . . . 120 . . Trap . | . . . . . . Miscellaneous . | . . . . . . Route ------- -11/Scrapyard -10/Materials (discovered 2 exits: [*Min x2]) -10/Mines -10/Exiles (discovered 2 exits: [*Min x2]) -9/Mines -8/Materials History --------- Turn | Location | Event 7 | -11/Scrapyard | Discovered new exit (range 14) 38 | -11/Scrapyard | Entered Materials 63 | -10/Materials | Discovered new exit (range 7) 170 | -10/Materials | Discovered new exit (range 14) 270 | -10/Materials | Entered Mines 301 | -10/Mines | Core integrity fell below 50% 305 | -10/Mines | Build established: Mutant 366 | -10/Mines | Deemed a non-threat by the Exiles lab entrance 366 | -10/Mines | Discovered new exit (range 5) 371 | -10/Mines | Entered Exiles 371 | -10/Exiles | Found Exiles lab destroyed 387 | -10/Exiles | Discovered new exit (range 15) 524 | -10/Exiles | Learned location of Zion (-7) 636 | -10/Exiles | Build established: Scavenger-Mutant 787 | -10/Exiles | Discovered new exit (range 10) 1268 | -10/Exiles | Entered Mines 1268 | -9/Mines | Accompanied by 4 allies 1270 | -9/Mines | Met a Derelict bent on vengeance 1380 | -9/Mines | Discovered new exit (range 10) 1434 | -9/Mines | Entered Materials 1434 | -8/Materials | Accompanied by 4 allies 1434 | -8/Materials | Evolved 4 slots: Utility x2, Weapon x2 1657 | -8/Materials | Lost 3 allies 1808 | -8/Materials | Build established: Scavenger-Gunner 2148 | -8/Materials | Core integrity fell below 50% 2161 | -8/Materials | Core integrity fell below 20% 2181 | -8/Materials | Destroyed by G-47 Trooper with Particle Gun Last Messages --------------- shutdown. 02167_ Acquired 43 matter. 02168_ Overheating: Energy bleed (-36). 02168_ Pulse Rifle destroyed. 02168_ Critical hit (Burn: +37). 02169_ Carbon-fiber Leg broken. 02169_ Overheating: Short circuit. 02170_ Overheating: Carbon-fiber Leg damaged (-23). 02170_ Imp. EM Shotgun destroyed. 02173_ Overheating: Energy bleed (-22). 02177_ Kicked G-47 Trooper. 02179_ Power failure, Imp. Deuterium Engine shutdown. 02179_ Kicked G-47 Trooper. 02179_ Carbon-fiber Leg destroyed. 02180_ Slammed into G-47 Trooper. 02180_ Destabilizing: System interference. 02180_ Adv. Targeting Computer temporarily disabled. Map ----- +----------------------------------------------------+ | ?????????????????????????????????????????????????? | | ?????????????????????????????????????????????????? | | ?????????????????????????????????????????????????? | | ?????????????????????????????????????????????????? | | ?????????????????????????????????????????????????? | | ?????????????????????????????????????????????????? | | ?????????????????????????????????????????????????? | | ?????????????????????????????????????????????????? | | ?????????????????????????????????????????????????? | | ?????????????????????????????????????????????????? | | ?????????????????????????????????????????????????? | | ?????????????????????????????????????????????????? | | ?????????????????????????????????????????????????? | | ?????????????????????????????????????????????????? | | ?????????????????????????????????????????????????? | | ?????????????????????????????????????????????????? | | ?????????????????????????????????????????????????? | | ?????????##########??????????????????????????????? | | ?????????# + #??????????????????????????????? | | ?????????# # """#??????????????????????????????? | | ?????????# # T"#??????????????????????????????? | | ?????????# + ! """#??????????????########????????? | | ?????????# # #????????####### ! #????????? | | ?????????# + ! #????????# # ! *#????????? | | ????##???# ########??####### # !#????????? | | ??### #### ########### g @g + #????????? | | ??# =%! # g##### # "T" #????????? | | ??# ""!* # #???# # """ #????????? | | ??# "T + #???##+###########????????? | | ??# "" ! # ######% ! #?????????????? | | ??# # # "" #?????????????? | | ??# ! # # "T #?????????????? | | ?######### ###########!# "" ########??????? | | ?#[ != + # #??#^# ## ######## | | ?# ! # + """ #??#^#+####### | | ?# = # # """ #??#% =[ *[= | | ?# = # # """ ######+##*#### | | ?# ! ! ###+#### ## #%#??# ######## | | ?#########?# ## = [## %! #=#??############## | | ????######## ########## !! # ###### # | | ???? ! # #????????# ! #=# # """ """ # | | ??? # #????????#[ #=#]!! # """ """ # | | ?# """ # #????????# #%#]!! #??????????? | | ?# """ # #????????########=#!!! #??????????? | | ?# """ """# #???????????????#=# *#??????????? | | ?# """ R"#####???????????????#%#%*= #??????????? | | ?# """ """#???????????????????# + % #??????????? | | ?# #???????????????????# # #??????????? | | ?#####+######################### #######?????????? | | ##### !==%%= %% % % % % #???? | +----------------------------------------------------+ Best States ------------- Heat Dissipation 31 Energy Generation 16 Energy Capacity 290 Matter Stores 300 Matter Capacity 300 Sight Range 16 Terrain Scan Density 10 Evasion (%) 55 Targeting Accuracy 13 Core Analysis 6 Salvage Targeting 4 Offensive Hacking 10 Item Schematics ----------------- None Robot Schematics ------------------ None Fabricated ------------ Nothing Repaired ---------- Nothing Studied --------- None Alien Tech Used ----------------- None Achievements -------------- None Challenges ------------ None Game ------ Seed CloakChainMembrane Manual? 0 Play Time 00:23:37 Cumulative 43.6 hours Start 2026.07.25 @ 14:28:37 End 2026.07.25 @ 14:49:13 Sessions 1 Manual Loads 0 Difficulty Rogue Special Mode None Game No. 74 Rogue 74 Adventurer 0 Explorer 0 Win Type - Total 0 Types 0/0/0/0/0/0/0/0/0/0 Lore% 28 Gallery% 32 Achievement% 25 Wizard Run 0 Options --------- Layout 1 ASCII 0 Keyboard 0 Movement Numpad Keybinds 0 Fullscreen 1 Font 24/Smallcaps Map View 50x35 Zoom Use 0% Tactical HUD 1 Map Filters NONE Filters NONE Steam 1 RUN: fd4e6a7d-8608-481e-b124-26161b8e27aa